[Event "*** Qualifier 1: Titled Tuesday 3|2 Blitz"]
[Site "Chess.com"]
[Date "2017.04.04"]
[Round "9"]
[White "Goala"]
[Black "MITerryble"]
[Result "0-1"]
[WhiteElo "2305"]
[BlackElo "2747"]
[TimeControl "180+2"]
[EndTime "15:07:41 PDT"]
[Termination "MITerryble won by checkmate"]

1. d4 {[%clk 0:03:02]} 1... e6 {[%clk 0:03:00.5]} 2. c4 {[%clk 0:03:03.1]} 2...
Bb4+ {[%clk 0:03:00.1]} 3. Bd2 {[%clk 0:03:03.6]} 3... Qe7 {[%clk 0:03:01.1]} 4.
g3 {[%clk 0:03:02.5]} 4... Nf6 {[%clk 0:03:01.3]} 5. Bg2 {[%clk 0:03:03.5]} 5...
O-O {[%clk 0:03:01.9]} 6. Nc3 {[%clk 0:03:03.9]} 6... Nc6 {[%clk 0:02:59.9]} 7.
Nf3 {[%clk 0:03:03.5]} 7... d6 {[%clk 0:03:00.1]} 8. O-O {[%clk 0:03:03.9]} 8...
Bxc3 {[%clk 0:03:00.5]} 9. Bxc3 {[%clk 0:03:04.6]} 9... Ne4 {[%clk 0:03:01.6]}
10. Rc1 {[%clk 0:03:05]} 10... e5 {[%clk 0:02:58.6]} 11. d5 {[%clk 0:03:02.3]}
11... Nb8 {[%clk 0:02:59.1]} 12. Be1 {[%clk 0:02:59]} 12... a5 {[%clk
0:02:55.8]} 13. Nd2 {[%clk 0:02:56.3]} 13... Nc5 {[%clk 0:02:54]} 14. Nb1 {[%clk
0:02:52.5]} 14... f5 {[%clk 0:02:49.9]} 15. b3 {[%clk 0:02:45]} 15... f4 {[%clk
0:02:47.7]} 16. a3 {[%clk 0:02:40]} 16... Bf5 {[%clk 0:02:25.4]} 17. Nc3 {[%clk
0:02:30.4]} 17... a4 {[%clk 0:02:14]} 18. Nxa4 {[%clk 0:02:19.4]} 18... Nxa4
{[%clk 0:02:13.3]} 19. bxa4 {[%clk 0:02:21.3]} 19... Nd7 {[%clk 0:02:06.5]} 20.
a5 {[%clk 0:02:15.5]} 20... h5 {[%clk 0:01:59]} 21. Bb4 {[%clk 0:01:40.3]} 21...
h4 {[%clk 0:01:54.1]} 22. e3 {[%clk 0:01:09.2]} 22... fxg3 {[%clk 0:01:30.7]}
23. fxg3 {[%clk 0:01:04.1]} 23... hxg3 {[%clk 0:01:32.6]} 24. Qh5 {[%clk
0:00:45.6]} 24... gxh2+ {[%clk 0:01:24.4]} 25. Kh1 {[%clk 0:00:46.7]} 25... g6
{[%clk 0:01:12.5]} 26. Qh6 {[%clk 0:00:42.3]} 26... Nf6 {[%clk 0:01:08.4]} 27.
c5 {[%clk 0:00:37]} 27... Ng4 {[%clk 0:01:05.6]} 28. cxd6 {[%clk 0:00:37.5]}
28... cxd6 {[%clk 0:01:07.5]} 29. Bxd6 {[%clk 0:00:21.7]} 29... Qxd6 {[%clk
0:01:02]} 30. Qh4 {[%clk 0:00:22.3]} 30... Nxe3 {[%clk 0:00:56.7]} 31. Rf3
{[%clk 0:00:11.9]} 31... Nxg2 {[%clk 0:00:52.9]} 32. Kxg2 {[%clk 0:00:13.8]}
32... Rac8 {[%clk 0:00:47.3]} 33. Rxc8 {[%clk 0:00:10.3]} 33... Rxc8 {[%clk
0:00:46.1]} 34. Kxh2 {[%clk 0:00:09.2]} 34... e4+ {[%clk 0:00:46.5]} 35. Rg3
{[%clk 0:00:10.8]} 35... Rc2+ {[%clk 0:00:46.1]} 36. Kh1 {[%clk 0:00:10.9]}
36... Qc5 {[%clk 0:00:33.7]} 37. Qd8+ {[%clk 0:00:11]} 37... Kf7 {[%clk
0:00:33.9]} 38. Qg5 {[%clk 0:00:04.3]} 38... Qf2 {[%clk 0:00:26.7]} 39. Qh6
{[%clk 0:00:02.5]} 39... Qxg3 {[%clk 0:00:20.7]} 40. Qh7+ {[%clk 0:00:03]} 40...
Kf6 {[%clk 0:00:22]} 41. Qh8+ {[%clk 0:00:04.2]} 41... Kg5 {[%clk 0:00:23.2]}
42. Qd8+ {[%clk 0:00:05.2]} 42... Kg4 {[%clk 0:00:23.7]} 43. Qc7 {[%clk
0:00:03.5]} 43... Qg2# {[%clk 0:00:24.1]} 0-1

[Event "*** Qualifier 1: Titled Tuesday 3|2 Blitz"]
[Site "Chess.com"]
[Date "2017.04.04"]
[Round "9"]
[White "Sethu0025"]
[Black "Robin-Side"]
[Result "0-1"]
[WhiteElo "2579"]
[BlackElo "2431"]
[TimeControl "180+2"]
[EndTime "15:07:42 PDT"]
[Termination "Robin-Side won by checkmate"]

1. d4 {[%clk 0:03:02]} 1... Nf6 {[%clk 0:03:00.7]} 2. Bf4 {[%clk 0:03:03.7]}
2... d5 {[%clk 0:02:58.9]} 3. Nf3 {[%clk 0:03:03.6]} 3... e6 {[%clk 0:02:59.8]}
4. e3 {[%clk 0:03:04.3]} 4... c5 {[%clk 0:03:01.1]} 5. c3 {[%clk 0:03:04.8]}
5... Nc6 {[%clk 0:03:02.5]} 6. Nbd2 {[%clk 0:03:05.5]} 6... Bd6 {[%clk
0:03:03.8]} 7. Bg3 {[%clk 0:03:06.4]} 7... O-O {[%clk 0:03:05]} 8. Bb5 {[%clk
0:03:06.5]} 8... Ne7 {[%clk 0:03:00]} 9. Bd3 {[%clk 0:03:07.3]} 9... b6 {[%clk
0:02:57.4]} 10. Qe2 {[%clk 0:03:07.6]} 10... Bb7 {[%clk 0:02:55.7]} 11. Ne5
{[%clk 0:03:08.6]} 11... Nf5 {[%clk 0:02:53.6]} 12. f4 {[%clk 0:03:07.6]} 12...
Be7 {[%clk 0:02:54.1]} 13. Bf2 {[%clk 0:03:07.4]} 13... Nd6 {[%clk 0:02:55.4]}
14. O-O {[%clk 0:03:04]} 14... Nfe4 {[%clk 0:02:56]} 15. Ndf3 {[%clk 0:03:01.8]}
15... f6 {[%clk 0:02:49.7]} 16. Ng4 {[%clk 0:02:56.8]} 16... h5 {[%clk
0:02:50.4]} 17. Nh4 {[%clk 0:02:52.4]} 17... Qe8 {[%clk 0:02:32.2]} 18. dxc5
{[%clk 0:02:49]} 18... bxc5 {[%clk 0:02:28.6]} 19. f5 {[%clk 0:02:31.6]} 19...
exf5 {[%clk 0:02:23.5]} 20. Bxe4 {[%clk 0:02:29.5]} 20... fxe4 {[%clk
0:02:03.5]} 21. Bg3 {[%clk 0:02:28.5]} 21... hxg4 {[%clk 0:01:56.5]} 22. Bxd6
{[%clk 0:02:29.1]} 22... Bxd6 {[%clk 0:01:50.5]} 23. Nf5 {[%clk 0:02:31]} 23...
Qe5 {[%clk 0:01:16.9]} 24. Qxg4 {[%clk 0:02:31.8]} 24... g5 {[%clk 0:00:54]} 25.
Qh5 {[%clk 0:02:31.9]} 25... Qxh2+ {[%clk 0:00:05.9]} 26. Qxh2 {[%clk 0:02:32]}
26... Bxh2+ {[%clk 0:00:07.8]} 27. Kxh2 {[%clk 0:02:33.5]} 27... Rad8 {[%clk
0:00:07]} 28. Rad1 {[%clk 0:02:30.2]} 28... Kf7 {[%clk 0:00:06.9]} 29. Kg3
{[%clk 0:02:29.1]} 29... Bc8 {[%clk 0:00:08.2]} 30. c4 {[%clk 0:02:23.9]} 30...
Bxf5 {[%clk 0:00:05.6]} 31. Rxf5 {[%clk 0:02:24.4]} 31... d4 {[%clk 0:00:07]}
32. Rxc5 {[%clk 0:02:24.5]} 32... d3 {[%clk 0:00:07.8]} 33. Rc7+ {[%clk
0:02:25]} 33... Kg6 {[%clk 0:00:09.1]} 34. Rc6 {[%clk 0:02:15.6]} 34... Rc8
{[%clk 0:00:07.1]} 35. Rxc8 {[%clk 0:02:10.8]} 35... Rxc8 {[%clk 0:00:09]} 36.
b3 {[%clk 0:02:11.8]} 36... Kf5 {[%clk 0:00:07]} 37. Rh1 {[%clk 0:02:07.5]}
37... Rc6 {[%clk 0:00:05.5]} 38. Kf2 {[%clk 0:02:04.9]} 38... Ra6 {[%clk
0:00:06.2]} 39. a4 {[%clk 0:02:06.1]} 39... Rb6 {[%clk 0:00:07.1]} 40. Rb1
{[%clk 0:02:07.1]} 40... a5 {[%clk 0:00:05.8]} 41. c5 {[%clk 0:02:07.3]} 41...
Rc6 {[%clk 0:00:05]} 42. Rc1 {[%clk 0:02:05.1]} 42... Ke6 {[%clk 0:00:06.5]} 43.
Ke1 {[%clk 0:02:05.1]} 43... Kd5 {[%clk 0:00:08]} 44. Kd2 {[%clk 0:02:05.3]}
44... Rxc5 {[%clk 0:00:09.4]} 45. Rf1 {[%clk 0:02:06.2]} 45... Rc2+ {[%clk
0:00:10.5]} 46. Kd1 {[%clk 0:02:07]} 46... Ke5 {[%clk 0:00:12.4]} 47. g4 {[%clk
0:02:04.7]} 47... Rb2 {[%clk 0:00:12.9]} 48. Rf5+ {[%clk 0:02:05.6]} 48... Ke6
{[%clk 0:00:14.4]} 49. Rxa5 {[%clk 0:02:06.7]} 49... Re2 {[%clk 0:00:15]} 50.
Ra6+ {[%clk 0:02:06]} 50... Kf7 {[%clk 0:00:16.5]} 51. Ra7+ {[%clk 0:02:07]}
51... Kg6 {[%clk 0:00:17.4]} 52. a5 {[%clk 0:02:08]} 52... Rxe3 {[%clk 0:00:19]}
53. a6 {[%clk 0:02:09.4]} 53... Rg3 {[%clk 0:00:19.8]} 54. Rd7 {[%clk
0:02:08.5]} 54... Rxg4 {[%clk 0:00:18.4]} 55. a7 {[%clk 0:02:08.9]} 55... Rg1+
{[%clk 0:00:19.6]} 56. Kd2 {[%clk 0:02:09.8]} 56... Ra1 {[%clk 0:00:21.5]} 57.
b4 {[%clk 0:02:11.1]} 57... g4 {[%clk 0:00:21.9]} 58. b5 {[%clk 0:02:12.5]}
58... g3 {[%clk 0:00:23.5]} 59. b6 {[%clk 0:02:12.7]} 59... g2 {[%clk 0:00:25]}
60. Rd8 {[%clk 0:02:13.9]} 60... Kg7 {[%clk 0:00:19.1]} 61. Rd7+ {[%clk
0:02:14.8]} 61... Kg6 {[%clk 0:00:20.4]} 62. Rd8 {[%clk 0:02:15.9]} 62... Ra2+
{[%clk 0:00:20.5]} 63. Kc3 {[%clk 0:02:14.5]} 63... Kf7 {[%clk 0:00:10.3]} 64.
b7 {[%clk 0:02:07.8]} 64... g1=Q {[%clk 0:00:10.7]} 65. b8=Q {[%clk 0:02:07.5]}
65... Rc2+ {[%clk 0:00:10.8]} 66. Kb4 {[%clk 0:01:59.1]} 66... Qb1+ {[%clk
0:00:12.5]} 67. Ka5 {[%clk 0:01:58]} 67... Ra2# {[%clk 0:00:14.4]} 0-1

[Event "*** Qualifier 1: Titled Tuesday 3|2 Blitz"]
[Site "Chess.com"]
[Date "2017.04.04"]
[Round "9"]
[White "Noukii"]
[Black "keisyzrk"]
[Result "0-1"]
[WhiteElo "2638"]
[BlackElo "2278"]
[TimeControl "180+2"]
[EndTime "15:07:45 PDT"]
[Termination "keisyzrk won by resignation"]

1. d4 {[%clk 0:03:02]} 1... Nf6 {[%clk 0:02:45.8]} 2. Nf3 {[%clk 0:03:02.6]}
2... g6 {[%clk 0:02:44.1]} 3. Bg5 {[%clk 0:03:02.1]} 3... Bg7 {[%clk 0:02:44]}
4. Nbd2 {[%clk 0:03:02.6]} 4... d5 {[%clk 0:02:41]} 5. e3 {[%clk 0:03:02.2]}
5... O-O {[%clk 0:02:39.2]} 6. Be2 {[%clk 0:02:56.5]} 6... b6 {[%clk 0:02:40.5]}
7. O-O {[%clk 0:02:57]} 7... c5 {[%clk 0:02:41.8]} 8. c3 {[%clk 0:02:57.6]} 8...
Bb7 {[%clk 0:02:42.7]} 9. a4 {[%clk 0:02:56.3]} 9... Nc6 {[%clk 0:02:42.4]} 10.
h3 {[%clk 0:02:55]} 10... h6 {[%clk 0:02:39.2]} 11. Bf4 {[%clk 0:02:55.8]} 11...
a6 {[%clk 0:02:28.8]} 12. Qb3 {[%clk 0:02:48.9]} 12... c4 {[%clk 0:02:19.5]} 13.
Qa3 {[%clk 0:02:43.8]} 13... b5 {[%clk 0:02:18]} 14. axb5 {[%clk 0:02:39]} 14...
axb5 {[%clk 0:02:17.3]} 15. Qc5 {[%clk 0:02:40.5]} 15... Ra5 {[%clk 0:01:46]}
16. b4 {[%clk 0:02:15.6]} 16... Nd7 {[%clk 0:01:45.8]} 17. Qxc6 {[%clk
0:01:25.7]} 17... Bxc6 {[%clk 0:01:43.2]} 18. Rxa5 {[%clk 0:01:27.3]} 18... Nb6
{[%clk 0:01:24]} 19. Bd1 {[%clk 0:01:23.3]} 19... Qd7 {[%clk 0:01:06.7]} 20. Bc2
{[%clk 0:01:22.8]} 20... Ra8 {[%clk 0:01:05.9]} 21. Rfa1 {[%clk 0:01:23.9]}
21... Rxa5 {[%clk 0:01:02]} 22. Rxa5 {[%clk 0:01:25.8]} 22... Qb7 {[%clk
0:00:59.3]} 23. Nb1 {[%clk 0:01:19.2]} 23... Be8 {[%clk 0:00:38.3]} 24. Na3
{[%clk 0:01:16.4]} 24... Nc8 {[%clk 0:00:39.7]} 25. Kf1 {[%clk 0:01:03.5]} 25...
Na7 {[%clk 0:00:23.8]} 26. Nb1 {[%clk 0:00:40.2]} 26... Nc6 {[%clk 0:00:21.3]}
27. Ra2 {[%clk 0:00:40.9]} 27... f6 {[%clk 0:00:21.7]} 28. Bg3 {[%clk
0:00:37.4]} 28... e5 {[%clk 0:00:22.8]} 29. Nh4 {[%clk 0:00:36.3]} 29... f5
{[%clk 0:00:21.6]} 30. Nf3 {[%clk 0:00:35.8]} 30... e4 {[%clk 0:00:22.4]} 31.
Nfd2 {[%clk 0:00:34.4]} 31... g5 {[%clk 0:00:23]} 32. Bd6 {[%clk 0:00:35.5]}
32... Bf8 {[%clk 0:00:21.7]} 33. Bxf8 {[%clk 0:00:34]} 33... Kxf8 {[%clk
0:00:23.6]} 34. g3 {[%clk 0:00:34.7]} 34... Ne7 {[%clk 0:00:24.6]} 35. Ra5
{[%clk 0:00:34.3]} 35... Nc6 {[%clk 0:00:25.5]} 36. Ra2 {[%clk 0:00:34.9]} 36...
Bd7 {[%clk 0:00:26.7]} 37. Kg2 {[%clk 0:00:36]} 37... Kg7 {[%clk 0:00:28]} 38.
Bd1 {[%clk 0:00:37.2]} 38... Ne7 {[%clk 0:00:28.9]} 39. Nf1 {[%clk 0:00:38.5]}
39... f4 {[%clk 0:00:29.5]} 40. gxf4 {[%clk 0:00:31.6]} 40... gxf4 {[%clk
0:00:31.4]} 41. exf4 {[%clk 0:00:33.2]} 41... Ng6 {[%clk 0:00:32.7]} 42. Ne3
{[%clk 0:00:31.8]} 42... Nxf4+ {[%clk 0:00:33.6]} 43. Kf1 {[%clk 0:00:30.4]}
43... Bxh3+ {[%clk 0:00:34]} 44. Ke1 {[%clk 0:00:28.8]} 44... Be6 {[%clk
0:00:34.6]} 45. Nd2 {[%clk 0:00:28.2]} 45... Nd3+ {[%clk 0:00:35.2]} 46. Kf1
{[%clk 0:00:29.4]} 46... Qf7 {[%clk 0:00:35.7]} 47. Nb1 {[%clk 0:00:17.7]} 47...
h5 {[%clk 0:00:36.4]} 48. Kg2 {[%clk 0:00:18.2]} 48... h4 {[%clk 0:00:37.5]} 0-1

[Event "*** Qualifier 1: Titled Tuesday 3|2 Blitz"]
[Site "Chess.com"]
[Date "2017.04.04"]
[Round "9"]
[White "donotreadit"]
[Black "jcgs1030"]
[Result "1/2-1/2"]
[WhiteElo "2483"]
[BlackElo "2295"]
[TimeControl "180+2"]
[EndTime "15:07:53 PDT"]
[Termination "Game drawn - insufficient material"]

1. d4 {[%clk 0:03:02]} 1... Nf6 {[%clk 0:02:57.8]} 2. c4 {[%clk 0:03:03.1]} 2...
c5 {[%clk 0:02:57.4]} 3. Nf3 {[%clk 0:03:03.7]} 3... cxd4 {[%clk 0:02:58.2]} 4.
Nxd4 {[%clk 0:03:05.6]} 4... g6 {[%clk 0:02:58.8]} 5. g3 {[%clk 0:03:05.5]} 5...
Bg7 {[%clk 0:03:00.3]} 6. Bg2 {[%clk 0:03:06.8]} 6... O-O {[%clk 0:03:02.2]} 7.
O-O {[%clk 0:03:08.1]} 7... Nc6 {[%clk 0:03:04.1]} 8. Nc3 {[%clk 0:03:09.3]}
8... d6 {[%clk 0:03:05.5]} 9. Nc2 {[%clk 0:03:08.3]} 9... Be6 {[%clk 0:03:05.8]}
10. b3 {[%clk 0:03:08.8]} 10... Qd7 {[%clk 0:03:04.3]} 11. Re1 {[%clk
0:03:08.8]} 11... Rfd8 {[%clk 0:03:05.5]} 12. e4 {[%clk 0:03:00]} 12... Bh3
{[%clk 0:03:05.9]} 13. Bb2 {[%clk 0:02:48.3]} 13... Bxg2 {[%clk 0:03:00.8]} 14.
Kxg2 {[%clk 0:02:49.1]} 14... e6 {[%clk 0:03:02.4]} 15. Ne3 {[%clk 0:02:49.3]}
15... Rac8 {[%clk 0:03:00.2]} 16. Qd2 {[%clk 0:02:49.7]} 16... Ne5 {[%clk
0:02:54.1]} 17. Rad1 {[%clk 0:02:48]} 17... h5 {[%clk 0:02:51.5]} 18. h3 {[%clk
0:02:47.2]} 18... a6 {[%clk 0:02:51.9]} 19. f4 {[%clk 0:02:47.2]} 19... Nc6
{[%clk 0:02:48.6]} 20. Nc2 {[%clk 0:02:40]} 20... b5 {[%clk 0:02:46.6]} 21. cxb5
{[%clk 0:02:33.9]} 21... axb5 {[%clk 0:02:48.5]} 22. Nxb5 {[%clk 0:02:34.7]}
22... Qb7 {[%clk 0:02:49.9]} 23. Nc3 {[%clk 0:02:31]} 23... Ne7 {[%clk
0:02:44.9]} 24. Kh2 {[%clk 0:02:21.8]} 24... h4 {[%clk 0:02:45.1]} 25. g4 {[%clk
0:02:20.8]} 25... Qc7 {[%clk 0:02:41.3]} 26. Nd4 {[%clk 0:02:18.8]} 26... g5
{[%clk 0:02:29]} 27. Ncb5 {[%clk 0:01:59.3]} 27... Qb8 {[%clk 0:02:20.1]} 28. a4
{[%clk 0:01:55.5]} 28... gxf4 {[%clk 0:02:18.6]} 29. Nf3 {[%clk 0:01:56.4]}
29... d5 {[%clk 0:02:14.7]} 30. Be5 {[%clk 0:01:40.8]} 30... Nxg4+ {[%clk
0:02:04.2]} 31. hxg4 {[%clk 0:01:40.2]} 31... Bxe5 {[%clk 0:02:05.4]} 32. exd5
{[%clk 0:01:12.6]} 32... Rxd5 {[%clk 0:02:03.5]} 33. Qb4 {[%clk 0:01:12]} 33...
Bd6 {[%clk 0:01:48.7]} 34. Qe4 {[%clk 0:01:06.8]} 34... Rcc5 {[%clk 0:01:27.7]}
35. b4 {[%clk 0:01:02.4]} 35... Rxb5 {[%clk 0:01:24.9]} 36. axb5 {[%clk
0:01:02.5]} 36... Qxb5 {[%clk 0:01:26.8]} 37. Rxd5 {[%clk 0:00:55.8]} 37... Nxd5
{[%clk 0:01:26]} 38. Rd1 {[%clk 0:00:51.6]} 38... Qa4 {[%clk 0:01:19.3]} 39.
Rxd5 {[%clk 0:00:42.3]} 39... exd5 {[%clk 0:01:20.2]} 40. Qxd5 {[%clk
0:00:42.4]} 40... Qc2+ {[%clk 0:01:20.8]} 41. Kh3 {[%clk 0:00:37.3]} 41... Qf2
{[%clk 0:01:21.2]} 42. Qg5+ {[%clk 0:00:37.2]} 42... Kf8 {[%clk 0:01:21]} 43.
Qd8+ {[%clk 0:00:36.7]} 43... Kg7 {[%clk 0:01:21.7]} 44. Qg5+ {[%clk 0:00:37.2]}
44... Kh7 {[%clk 0:01:20.2]} 45. Qh5+ {[%clk 0:00:19.1]} 45... Kg8 {[%clk
0:01:19.4]} 46. Qg5+ {[%clk 0:00:20.2]} 46... Kf8 {[%clk 0:01:20.4]} 47. Qd8+
{[%clk 0:00:21.1]} 47... Kg7 {[%clk 0:01:21.2]} 48. Qg5+ {[%clk 0:00:22.7]}
48... Kh8 {[%clk 0:01:20.8]} 49. Qxh4+ {[%clk 0:00:17.5]} 49... Qxh4+ {[%clk
0:01:21]} 50. Kxh4 {[%clk 0:00:19.4]} 50... Bxb4 {[%clk 0:01:22.2]} 51. Kg5
{[%clk 0:00:20.7]} 51... Bd6 {[%clk 0:01:22.5]} 52. Kf6 {[%clk 0:00:21.5]} 52...
Kg8 {[%clk 0:01:24]} 53. Ng5 {[%clk 0:00:21.7]} 53... Kf8 {[%clk 0:01:21.9]} 54.
Nh7+ {[%clk 0:00:18.7]} 54... Ke8 {[%clk 0:01:21.9]} 55. Kf5 {[%clk 0:00:19.6]}
55... f3 {[%clk 0:01:22.4]} 56. Nf6+ {[%clk 0:00:20.8]} 56... Kf8 {[%clk
0:01:19.7]} 57. Ne4 {[%clk 0:00:22.7]} 57... Kg7 {[%clk 0:01:15.7]} 58. g5
{[%clk 0:00:21.7]} 58... Bh2 {[%clk 0:01:14.3]} 59. Kg4 {[%clk 0:00:21.2]} 59...
Kg6 {[%clk 0:01:12.1]} 60. Kxf3 {[%clk 0:00:21.4]} 60... Kf5 {[%clk 0:01:13.5]}
61. Ke3 {[%clk 0:00:20]} 61... Bf4+ {[%clk 0:01:13.8]} 62. Kf3 {[%clk
0:00:21.4]} 62... Bxg5 {[%clk 0:01:15.2]} 63. Nd6+ {[%clk 0:00:21.4]} 63... Ke6
{[%clk 0:01:15.1]} 64. Nxf7 {[%clk 0:00:23.3]} 64... Kxf7 {[%clk 0:01:16.7]}
1/2-1/2

[Event "*** Qualifier 1: Titled Tuesday 3|2 Blitz"]
[Site "Chess.com"]
[Date "2017.04.04"]
[Round "9"]
[White "kleinebeer98"]
[Black "TheNextLevelFan"]
[Result "1-0"]
[WhiteElo "2504"]
[BlackElo "2369"]
[TimeControl "180+2"]
[EndTime "15:08:09 PDT"]
[Termination "kleinebeer98 won by resignation"]

1. e4 {[%clk 0:02:51.2]} 1... e5 {[%clk 0:03:00.4]} 2. Nf3 {[%clk 0:02:52.3]}
2... Nc6 {[%clk 0:03:01.8]} 3. Bb5 {[%clk 0:02:53.8]} 3... a6 {[%clk 0:03:02.8]}
4. Ba4 {[%clk 0:02:55.2]} 4... Nf6 {[%clk 0:03:04.1]} 5. d3 {[%clk 0:02:56.8]}
5... d6 {[%clk 0:03:04.2]} 6. c3 {[%clk 0:02:57.6]} 6... Be7 {[%clk 0:03:04.9]}
7. Bg5 {[%clk 0:02:57.9]} 7... O-O {[%clk 0:03:05.3]} 8. Nbd2 {[%clk 0:02:59.4]}
8... Nh5 {[%clk 0:02:59.5]} 9. h4 {[%clk 0:02:56.2]} 9... Nf4 {[%clk 0:02:51.6]}
10. Bxf4 {[%clk 0:02:42.4]} 10... exf4 {[%clk 0:02:52.6]} 11. Qe2 {[%clk
0:02:34.8]} 11... Bg4 {[%clk 0:02:33]} 12. d4 {[%clk 0:02:24.1]} 12... Kh8
{[%clk 0:02:24.3]} 13. Qd3 {[%clk 0:02:07.9]} 13... f5 {[%clk 0:02:18.2]} 14.
Ng5 {[%clk 0:01:52]} 14... fxe4 {[%clk 0:02:14.7]} 15. Ndxe4 {[%clk 0:01:48.5]}
15... Bf5 {[%clk 0:02:08.5]} 16. Qf3 {[%clk 0:01:33.4]} 16... d5 {[%clk
0:02:05.7]} 17. Nd2 {[%clk 0:01:17.3]} 17... Bxg5 {[%clk 0:02:04.5]} 18. hxg5
{[%clk 0:01:19.2]} 18... Qe7+ {[%clk 0:02:05.4]} 19. Kf1 {[%clk 0:01:18]} 19...
Qxg5 {[%clk 0:02:06]} 20. Rh5 {[%clk 0:01:13]} 20... Qg6 {[%clk 0:02:06.5]} 21.
Rh4 {[%clk 0:01:07.3]} 21... Be4 {[%clk 0:01:58.9]} 22. Qh3 {[%clk 0:00:58]}
22... f3 {[%clk 0:01:42.5]} 23. Nxe4 {[%clk 0:00:51.4]} 23... dxe4 {[%clk
0:01:41.6]} 24. Bc2 {[%clk 0:00:49.6]} 24... Rae8 {[%clk 0:01:37.8]} 25. Re1
{[%clk 0:00:51.1]} 25... fxg2+ {[%clk 0:01:26]} 26. Kg1 {[%clk 0:00:46.5]} 26...
h6 {[%clk 0:01:20.9]} 27. Rhxe4 {[%clk 0:00:43.7]} 27... Qf6 {[%clk 0:01:13.6]}
28. Qxg2 {[%clk 0:00:40.7]} 28... Rxe4 {[%clk 0:01:12.4]} 29. Qxe4 {[%clk
0:00:32.7]} 29... Qxf2+ {[%clk 0:01:12.2]} 30. Kh1 {[%clk 0:00:34.1]} 30... g6
{[%clk 0:00:47]} 31. d5 {[%clk 0:00:35.3]} 31... Nd8 {[%clk 0:00:37.5]} 32. Rg1
{[%clk 0:00:19.7]} 32... Qf3+ {[%clk 0:00:29.8]} 33. Qxf3 {[%clk 0:00:20.3]}
33... Rxf3 {[%clk 0:00:31.7]} 34. Rxg6 {[%clk 0:00:21.4]} 34... Nf7 {[%clk
0:00:32.2]} 35. Kg2 {[%clk 0:00:18.5]} 35... Rf4 {[%clk 0:00:28.6]} 36. Kg3
{[%clk 0:00:18.1]} 36... Rf1 {[%clk 0:00:27]} 37. Re6 {[%clk 0:00:18.1]} 37...
Rc1 {[%clk 0:00:15.3]} 38. Bb3 {[%clk 0:00:14.3]} 38... Rg1+ {[%clk 0:00:13.8]}
39. Kf4 {[%clk 0:00:12.5]} 39... Rg7 {[%clk 0:00:14.8]} 40. Re8+ {[%clk
0:00:12.3]} 40... Kh7 {[%clk 0:00:13.8]} 41. Bc2+ {[%clk 0:00:13.1]} 41... Rg6
{[%clk 0:00:15.3]} 42. Re6 {[%clk 0:00:12.1]} 42... Nh8 {[%clk 0:00:16.3]} 43.
Re7+ {[%clk 0:00:08.5]} 43... Kg8 {[%clk 0:00:17.3]} 44. Re8+ {[%clk 0:00:09.7]}
44... Kg7 {[%clk 0:00:17.8]} 45. Bxg6 {[%clk 0:00:09.3]} 45... Nxg6+ {[%clk
0:00:18.2]} 46. Kf5 {[%clk 0:00:10.7]} 46... Nh4+ {[%clk 0:00:19.4]} 47. Ke6
{[%clk 0:00:11.7]} 47... Nf3 {[%clk 0:00:20.2]} 48. Re7+ {[%clk 0:00:12.2]}
48... Kg6 {[%clk 0:00:22.1]} 49. Rxc7 {[%clk 0:00:13.5]} 49... h5 {[%clk
0:00:23.7]} 50. d6 {[%clk 0:00:14.3]} 50... Ng5+ {[%clk 0:00:25.6]} 51. Ke7
{[%clk 0:00:15.5]} 51... h4 {[%clk 0:00:27.5]} 52. d7 {[%clk 0:00:16.9]} 52...
h3 {[%clk 0:00:28.7]} 53. d8=Q {[%clk 0:00:17.2]} 53... h2 {[%clk 0:00:30.6]}
54. Qg8+ {[%clk 0:00:17.9]} 54... Kf5 {[%clk 0:00:31.8]} 55. Rc5+ {[%clk
0:00:19.2]} 55... Ke4 {[%clk 0:00:33.5]} 56. Qd5+ {[%clk 0:00:19.3]} 1-0